[Event "German-ch Blitz Women 2022"]
[Site "Magdeburg"]
[Date "2022.08.13"]
[Round "7.7"]
[White "Schuster, Rebekka"]
[Black "Braun, Kristin"]
[Result "0-1"]
[ECO "B76"]
[WhiteElo "1815"]
[BlackElo "1897"]
[Annotator "NA RC COMBH"]
[PlyCount "71"]
[EventDate "2022.08.10"]
[EventType "tourn"]
[EventCountry "GER"]
[SourceTitle "playchess.com"]
[Source "ChessBase"]
[SourceQuality "1"]
[TimeControl "180+2"]

1. e4 c5 2. Nf3 {[%emt 0:00:02]} d6 {[%emt 0:00:00]} 3. d4 {[%emt 0:00:01]} cxd4 {[%emt 0:00:01]} 4. Nxd4 {[%emt 0:00:01]} Nf6 {[%emt 0:00:00]} 5. Nc3 g6 6. f3 {[%emt 0:00:01]} Bg7 {[%emt 0:00:01]} 7. Be3 {[%emt 0:00:01]} Nc6 {[%emt 0:00:01]} 8. Qd2 {[%emt 0:00:01]} O-O {[%emt 0:00:01]} 9. O-O-O {[%emt 0:00:01]} d5 {[%emt 0:00:02]} 10. Nb3 {[%emt 0:00:54]} e6 {[%emt 0:00:55]} 11. Kb1 {[%emt 0:00:17]} b6 {[%emt 0:00:22]} 12. Bg5 dxe4 {[%emt 0:00:26]} 13. Nxe4 {[%emt 0:00:15]} Qxd2 {[%emt 0:00:01]} 14. Bxd2 {[%emt 0:00:01]} Nxe4 {[%emt 0:00:02]} 15. fxe4 {[%emt 0:00:02]} Bb7 {[%emt 0:00:00]} 16. Bd3 {[%emt 0:00:07]} Rad8 {[%emt 0:00:01]} 17. Rhf1 {[%emt 0:00:29]} Ne5 {[%emt 0:00:04]} 18. Nc1 {[%emt 0:00:06]} Nxd3 {[%emt 0:00:08]} 19. cxd3 {[%emt 0:00:02]} Ba6 {[%emt 0:00:05]} 20. Rf3 {[%emt 0:00:02]} Rd7 {[%emt 0:00:04]} 21. Bc3 {[%emt 0:00:10]} e5 {[%emt 0:00:06]} 22. Kc2 {[%emt 0:00:13]} Rfd8 {[%emt 0:00:01]} 23. a4 {[%emt 0:00:21]} Bb7 {[%emt 0:00:03]} 24. b4 {[%emt 0:00:03]} Bxe4 {[%emt 0:00:02]} 25. Re3 {[%emt 0:00:05]} Bxg2 {[%emt 0:00:04]} 26. Bxe5 {[%emt 0:00:02]} Bxe5 {[%emt 0:00:01]} 27. Rxe5 {[%emt 0:00:00]} Rc8+ {[%emt 0:00:03]} 28. Kb3 {[%emt 0:00:06]} Bd5+ {[%emt 0:00:05]} 29. Kb2 {[%emt 0:00:01]} Be6 {[%emt 0:00:02]} 30. Ne2 {[%emt 0:00:17]} Bg4 {[%emt 0:00:02]} 31. Rd2 {[%emt 0:00:07]} Rcd8 {[%emt 0:00:06]} 32. Nc1 {[%emt 0:00:10]} Rd4 {[%emt 0:00:06]} 33. Nb3 {[%emt 0:00:03]} Rxb4 {[%emt 0:00:05]} 34. Kc3 {[%emt 0:00:03]} Rxa4 {[%emt 0:00:01]} 35. d4 {[%emt 0:00:05]} Be6 {[%emt 0:00:06]} 36. Nc1 0-1

[Event "German-ch Blitz Women 2022"]
[Site "Magdeburg"]
[Date "2022.08.13"]
[Round "7.8"]
[White "Zschischang, Marine"]
[Black "Grabowski, Petra"]
[Result "0-1"]
[ECO "D20"]
[WhiteElo "2083"]
[BlackElo "1643"]
[Annotator "NA RC"]
[PlyCount "99"]
[EventDate "2022.08.10"]
[EventType "tourn"]
[EventCountry "GER"]
[SourceTitle "playchess.com"]
[Source "ChessBase"]
[SourceQuality "1"]
[TimeControl "180+2"]

1. d4 {[%emt 0:00:00]} d5 {[%emt 0:00:02]} 2. c4 {[%emt 0:00:01]} dxc4 {[%emt 0:00:02]} 3. e3 {[%emt 0:00:01]} e5 {[%emt 0:00:02]} 4. Bxc4 {[%emt 0:00:02]} exd4 {[%emt 0:00:02]} 5. exd4 {[%emt 0:00:01]} Bd6 {[%emt 0:00:02]} 6. Nf3 {[%emt 0:00:03]} Nf6 {[%emt 0:00:02]} 7. O-O {[%emt 0:00:04]} O-O {[%emt 0:00:02]} 8. h3 {[%emt 0:00:01]} Re8 {[%emt 0:00:11]} 9. Nc3 {[%emt 0:00:02]} Be6 {[%emt 0:00:06]} 10. Bd3 {[%emt 0:00:05]} Nd5 {[%emt 0:00:17]} 11. a3 {[%emt 0:00:14]} Nxc3 {[%emt 0:00:09]} 12. bxc3 {[%emt 0:00:02]} Nd7 {[%emt 0:00:12]} 13. Bg5 {[%emt 0:00:09]} Be7 {[%emt 0:00:06]} 14. Bf4 {[%emt 0:00:06]} Nf6 {[%emt 0:00:06]} 15. Re1 {[%emt 0:00:10]} Nd5 {[%emt 0:00:04]} 16. Bd2 {[%emt 0:00:07]} Qd7 {[%emt 0:00:13]} 17. Ne5 {[%emt 0:00:03]} Qd6 {[%emt 0:00:13]} 18. Qh5 {[%emt 0:00:21]} Nf6 {[%emt 0:00:11]} 19. Qh4 {[%emt 0:00:12]} g6 {[%emt 0:00:13]} 20. Bg5 {[%emt 0:00:12]} Nh5 {[%emt 0:00:06]} 21. Bxe7 {[%emt 0:00:24]} Qxe7 {[%emt 0:00:02]} 22. Qxe7 {[%emt 0:00:06]} Rxe7 {[%emt 0:00:01]} 23. Rab1 {[%emt 0:00:05]} Rb8 {[%emt 0:00:10]} 24. Nc6 {[%emt 0:00:08]} Ree8 {[%emt 0:00:12]} 25. Nxb8 {[%emt 0:00:02]} Rxb8 {[%emt 0:00:01]} 26. Be4 {[%emt 0:00:03]} c6 {[%emt 0:00:02]} 27. Bxc6 {[%emt 0:00:01]} Rc8 {[%emt 0:00:04]} 28. Bxb7 {[%emt 0:00:08]} Rxc3 {[%emt 0:00:02]} 29. Bf3 {[%emt 0:00:07]} Nf4 {[%emt 0:00:06]} 30. Rbd1 {[%emt 0:00:23]} Nxh3+ {[%emt 0:00:02]} 31. gxh3 {[%emt 0:00:04]} Rxf3 {[%emt 0:00:01]} 32. d5 {[%emt 0:00:01]} Bxh3 {[%emt 0:00:02]} 33. Re3 {[%emt 0:00:05]} Rxe3 {[%emt 0:00:05]} 34. fxe3 {[%emt 0:00:01]} Kf8 {[%emt 0:00:08]} 35. e4 {[%emt 0:00:02]} Ke7 {[%emt 0:00:02]} 36. e5 {[%emt 0:00:01]} Bf5 {[%emt 0:00:06]} 37. Kf2 {[%emt 0:00:02]} h5 {[%emt 0:00:01]} 38. Kg3 {[%emt 0:00:02]} g5 {[%emt 0:00:07]} 39. Rc1 {[%emt 0:00:03]} Be4 {[%emt 0:00:06]} 40. Rc5 {[%emt 0:00:06]} a6 {[%emt 0:00:04]} 41. Ra5 {[%emt 0:00:02]} Bd3 {[%emt 0:00:03]} 42. Kf3 {[%emt 0:00:07]} h4 {[%emt 0:00:07]} 43. Kg4 {[%emt 0:00:01]} f6 {[%emt 0:00:06]} 44. exf6+ {[%emt 0:00:01]} Kxf6 {[%emt 0:00:01]} 45. d6 {[%emt 0:00:02]} Bb5 {[%emt 0:00:08]} 46. d7 {[%emt 0:00:03]} Ke7 {[%emt 0:00:01]} 47. a4 {[%emt 0:00:01]} Bxd7+ {[%emt 0:00:04]} 48. Rf5 {[%emt 0:00:03]} Bxf5+ {[%emt 0:00:00]} 49. Kxf5 {[%emt 0:00:01]} Kd6 {[%emt 0:00:00]} 50. Ke4 {[%emt 0:00:01]} 0-1

[Event "German-ch Blitz Women 2022"]
[Site "Magdeburg"]
[Date "2022.08.13"]
[Round "7.9"]
[White "Staerk, Elisa"]
[Black "Khrapko, Marharyta"]
[Result "0-1"]
[ECO "B30"]
[WhiteElo "1947"]
[BlackElo "2128"]
[Annotator "TA"]
[PlyCount "42"]
[EventDate "2022.08.10"]
[EventType "tourn"]
[EventCountry "GER"]
[SourceTitle "playchess.com"]
[Source "ChessBase"]
[SourceQuality "1"]
[TimeControl "180+2"]

{[%evp 10,42,18,13,27,0,-2,-129,-142,-142,-130,-152,-137,-132,-123,-184,-177,-176,-174,-179,-164,-182,-185,-179,-164,-175,-175,-208,-189,-647,-650,-866,-857,-1043,-1021]} 1. e4 {[%emt 0:00:01]} c5 {[%emt 0:00:01]} 2. Nf3 {[%emt 0:00:01]} Nc6 {[%emt 0:00:00]} 3. Bb5 {[%emt 0:00:01]} Nd4 {[%emt 0:00:01]} 4. Nc3 {[%emt 0:00:01]} e6 {[%emt 0:00:05]} 5. O-O {[%emt 0:00:04]} a6 {[%emt 0:00:04]} 6. Bd3 {[%emt 0:00:05]} Ne7 {[%emt 0:00:03][%cal Bg8e7,Be7c6,Bc6e5,Be5d3][%mdl 32] B30: Sicilian: 2...Nc6 3 Bb5, lines without ...g6.} 7. a4 {[%emt 0:00:01]} Nec6 {[%emt 0:00:03] [#]} 8. e5 $146 {[%emt 0:00:14]} (8. Nxd4 $11 cxd4 9. Ne2) ({Predecessor:} 8. Nxd4 cxd4 9. Ne2 d5 10. exd5 Qxd5 11. c3 Be7 12. Qc2 f5 13. b3 O-O 14. Bc4 {½-½ (30) Dragojlovic,A (2432)-Gladyszev,O (2480) Val Thorens 2007}) 8... Nxf3+ $17 {[%emt 0:00:07] Black is better.} 9. Qxf3 {[%emt 0:00:02]} Nxe5 {[%emt 0:00:02]} 10. Qe2 {[%emt 0:00:01]} Nxd3 {[%emt 0:00:05]} 11. Qxd3 {[%emt 0:00:01]} Be7 {[%emt 0:00:03]} 12. Ne4 {[%emt 0:00:09]} (12. a5 $17) 12... d5 $19 {[%emt 0:00:02]} 13. Ng3 {[%emt 0:00:05]} O-O {[%emt 0:00:09]} 14. f4 {[%emt 0:00:09]} Rb8 {[%emt 0:00:06]} 15. Qe2 {[%emt 0:00:07]} b5 {[%emt 0:00:10]} 16. axb5 {[%emt 0:00:04]} axb5 {[%emt 0:00:01][%cal Ba6b5,Bb5b4][%mdl 32]} 17. b3 {[%emt 0:00:03]} Bf6 {[%emt 0:00:07]} 18. Ra7 {[%emt 0:00:12]} c4 {[%emt 0:00:04]} 19. Ba3 $2 {[%emt 0:00:07] [#]} (19. Qf2) 19... b4 {[%emt 0:00:06] Black is clearly winning.} 20. Bc1 {[%emt 0:00:07]} Qb6+ {[%emt 0:00:01]} 21. Qf2 {[%emt 0:00:02]} Bd4 {[%emt 0:00:02] Black took control after the opening.  Weighted Error Value: White=0.97/Black=0.04 (flawless)} 0-1

[Event "German-ch Blitz Women 2022"]
[Site "Magdeburg"]
[Date "2022.08.13"]
[Round "7.10"]
[White "Melamed, Tatjana"]
[Black "Daemering, Katrin"]
[Result "1-0"]
[ECO "B52"]
[WhiteElo "2380"]
[BlackElo "1965"]
[Annotator "TA"]
[PlyCount "99"]
[EventDate "2022.08.10"]
[EventType "tourn"]
[EventCountry "GER"]
[SourceTitle "playchess.com"]
[Source "ChessBase"]
[SourceQuality "1"]
[TimeControl "180+2"]

{[%evp 9,99,18,11,0,33,27,31,17,37,22,9,21,10,-22,-16,0,72,72,73,83,81,79,79,77,85,85,102,72,91,66,78,82,70,54,80,18,103,83,186,78,90,85,81,73,72,64,72,75,83,90,81,56,104,118,122,86,219,130,125,0,16,16,16,0,0,0,0,0,646,608,533,129,127,116,202,66,132,22,87,0,0,0,7,8,1389,367,425,272,252,8,29971,29966]} 1. e4 {[%emt 0:00:00]} c5 {[%emt 0:00:01]} 2. Nf3 {[%emt 0:00:03]} d6 {[%emt 0:00:01]} 3. Bb5+ {[%emt 0:00:01]} Bd7 {[%emt 0:00:01]} 4. c4 {[%emt 0:00:03]} e6 {[%emt 0:00:03]} 5. O-O {[%emt 0:00:03]} Nf6 {[%emt 0:00:02]} 6. Nc3 {[%emt 0:00:01] B52: Sicilian: Moscow Variation with 3...Bd7.} Be7 {[%emt 0:00:01]} 7. d4 {[%emt 0:00:03]} cxd4 {[%emt 0:00:02]} 8. Nxd4 {[%emt 0:00:01] White is slightly better.} O-O {[%emt 0:00:02]} 9. Be3 {[%emt 0:00:01]} a6 {[%emt 0:00:03]} 10. Bxd7 {[%emt 0:00:08]} Nbxd7 {[%emt 0:00:03]} 11. Qd2 {[%emt 0:00:07] [#]} Rc8 $146 {[%emt 0:00:04]} ({Predecessor:} 11... Nc5 12. f3 Rc8 13. Rfd1 Qc7 14. Rac1 Rfd8 15. b3 Qa5 16. Nd5 Qxd2 17. Nxe7+ Kf8 18. Rxd2 Kxe7 19. Rcd1 h6 20. g4 g5 21. Kg2 Rg8 22. Ne2 Rcd8 23. Rxd6 e5 24. Bxc5 {1-0 (24) Slepov,K (1983)-Hercegovac,N (2013) Chess.com INT 2020}) 12. b3 {[%emt 0:00:01]} Qa5 {[%emt 0:00:12] [#]} (12... Ng4 $11) 13. Nd5 $1 $16 {[%emt 0:00:07]} Qd8 {[%emt 0:00:06]} 14. Nxe7+ {[%emt 0:00:03]} Qxe7 {[%emt 0:00:02]} 15. f3 {[%emt 0:00:02][%cal Bf2f3,Bf3f4][%mdl 32]} Rfd8 {[%emt 0:00:04]} 16. Qb4 {[%emt 0:00:09]} Ne5 {[%emt 0:00:20]} 17. Rad1 {[%emt 0:00:04]} Ne8 {[%emt 0:00:23]} 18. h3 {[%emt 0:00:10]} Rb8 {[%emt 0:00:05]} 19. f4 {[%emt 0:00:06]} Nc6 {[%emt 0:00:04]} 20. Nxc6 {[%emt 0:00:04]} bxc6 {[%emt 0:00:01]} 21. Qa3 {[%emt 0:00:05] 0x0.0002da4e3af1dp-1022s more active pieces. The black rooks are badly placed.} Qb7 {[%emt 0:00:07]} 22. Kh1 {[%emt 0:00:05]} (22. e5 $16) 22... c5 {[%emt 0:00:01]} (22... Nf6 $1 $11 {remains equal.}) 23. e5 {[%emt 0:00:03]} dxe5 {[%emt 0:00:09]} (23... Qe4 $16 24. Rfe1 dxe5 25. Rxd8 (25. Bxc5 Rxd1 26. Rxd1 exf4 $17) 25... Rxd8) 24. Qxc5 {[%emt 0:00:07]} (24. fxe5 $18 {and White stays clearly on top.} Rbc8 25. Bxc5) 24... exf4 {[%emt 0:00:09]} 25. Bxf4 {[%emt 0:00:06]} Rbc8 {[%emt 0:00:08]} 26. Qe5 {[%emt 0:00:08]} Nf6 {[%emt 0:00:06]} 27. Bg5 {[%emt 0:00:11]} Rxd1 {[%emt 0:00:03]} 28. Rxd1 {[%emt 0:00:01]} Nd7 {[%emt 0:00:03][%cal Bf6d7,Bd7f8,Bf8g6,Bg6e7,Be7c6][%mdl 32]} 29. Qd6 {[%emt 0:00:04]} Nf8 {[%emt 0:00:07]} 30. Qe7 {[%emt 0:00:12]} Qxe7 {[%emt 0:00:09]} (30... Qe4 $14) 31. Bxe7 $14 {[%emt 0:00:01][%mdl 4096] Endgame KRB-KRN} Ng6 {[%emt 0:00:01]} 32. Bd6 {[%emt 0:00:07]} Rd8 (32... f6 $16 {was called for.}) 33. c5 (33. b4 $1 $18) 33... Ne7 $16 {[%emt 0:00:13]} 34. Rd4 {[%emt 0:00:02]} ({Better is} 34. b4 $1 $16) 34... Nc6 {[%emt 0:00:01]} 35. Ra4 {[%emt 0:00:01]} Ra8 {[%emt 0:00:00]} 36. b4 {[%emt 0:00:01] Hoping for b5.} Ra7 $1 {[%emt 0:00:02]} 37. Kg1 {[%emt 0:00:12]} h6 {[%emt 0:00:01]} 38. Kf2 {[%emt 0:00:08]} Rb7 $2 {[%emt 0:00:02][%mdl 8192]} (38... f5 $11) 39. Rxa6 $18 {[%emt 0:00:03]} Nxb4 {[%emt 0:00:01]} 40. Ra8+ {[%emt 0:00:02]} (40. Rb6 $1 $18 {[%cal Rb6b7]} Nd3+ 41. Ke3 Nxc5 42. Bxc5) 40... Kh7 $16 {[%emt 0:00:01]} 41. a3 {[%emt 0:00:04]} Nc6 {[%emt 0:00:04]} (41... Nd5 $16) 42. a4 {[%emt 0:00:06]} (42. Ra6 $1 $18 {[%cal Ra6c6]} Ne7 43. c6 Rb2+ 44. Ke1) 42... Kg6 {[%emt 0:00:08]} (42... Rb2+ $14 43. Kg1 Rc2) 43. a5 {[%emt 0:00:07]} (43. Ra6 $16 Ne7 44. a5) 43... Rb5 {[%emt 0:00:07] [#]} (43... Rb2+ $1 $11 {keeps the balance.} 44. Kg3 Rb5) 44. a6 {[%emt 0:00:01]} (44. Ra6 $1 $16 {[%cal Ra6c6]} Nxa5 45. c6) 44... Ra5 $11 {[%emt 0:00:01]} 45. Ke3 {[%emt 0:00:13]} Kf5 {[%emt 0:00:05]} 46. Kd3 {[%emt 0:00:02] With the idea g4+.} Rxa6 $2 {[%emt 0:00:05][%mdl 8192]} 47. Rxa6 $2 {[%emt 0:00:02]} (47. g4+ Kf6 48. Rxa6 (48. g5+ Kf5 $16) 48... Nb4+ 49. Kc4 Nxa6 50. c6) 47... Nb4+ $18 {[%emt 0:00:01]} 48. Kc4 {[%emt 0:00:01]} Nxa6 {[%emt 0:00:00] [#]} 49. Kb5 {[%emt 0:00:00]} ({White has to play} 49. c6 $1 $18 {Strongly threatening Kb5.} Ke4 50. Kb5 (50. c7 Nxc7 51. Bxc7 Ke3 $11)) 49... Nb8 $2 {[%emt 0:00:02][%mdl 8192]} 50. Bxb8 {[%emt 0:00:02] Weighted Error Value: White=0.62/Black=0.53} 1-0

[Event "German-ch Blitz Women 2022"]
[Site "Magdeburg"]
[Date "2022.08.13"]
[Round "7.11"]
[White "Schulze, Lara"]
[Black "Muetsch, Annmarie"]
[Result "0-1"]
[ECO "C46"]
[WhiteElo "2292"]
[BlackElo "2249"]
[Annotator "TA"]
[PlyCount "102"]
[EventDate "2022.08.10"]
[EventType "tourn"]
[EventCountry "GER"]
[SourceTitle "playchess.com"]
[Source "ChessBase"]
[SourceQuality "1"]
[TimeControl "180+2"]

{[%evp 16,102,15,16,50,56,59,8,14,-8,0,-16,-22,-28,-12,-21,46,0,0,0,33,25,81,18,115,120,137,132,147,145,175,39,49,7,55,-19,-29,-37,2,1,124,23,21,0,0,0,0,-46,131,117,180,95,97,106,106,91,98,77,74,18,19,0,83,0,54,54,56,57,88,0,160,158,146,126,141,137,141,141,141,141,141,43,45,0,94,-870,-837,-746,-729]} 1. e4 {[%emt 0:00:01]} e5 {[%emt 0:00:01]} 2. Nf3 {[%emt 0:00:01]} Nc6 {[%emt 0:00:00]} 3. Nc3 {[%emt 0:00:01]} Be7 {[%emt 0:00:09]} 4. Bc4 {[%emt 0:00:05]} Nf6 {[%emt 0:00:03]} 5. d3 {[%emt 0:00:02]} d6 {[%emt 0:00:03]} 6. a3 {[%emt 0:00:01]} O-O {[%emt 0:00:06]} 7. O-O {[%emt 0:00:05]} Bg4 {[%emt 0:00:03]} 8. h3 {[%emt 0:00:02]} Bh5 {[%emt 0:00:02]} 9. Be3 {[%emt 0:00:01] [#]} Nb8 $146 {[%emt 0:00:20] C55: Two Knights: 4 d3, 4 d4 exd4 5 e5 and Max Lange Attack.} ({Predecessor:} 9... Nd4 10. Bxd4 exd4 11. Nd5 Nxd5 12. Bxd5 c6 13. Ba2 Bxf3 14. Qxf3 Qb6 15. Rab1 a5 16. a4 Qc5 17. Bb3 {1-0 (56) Aronian,L (2772)-Christiansen,J (2582) Warsaw 2021}) 10. g4 {[%emt 0:01:00]} Bg6 {[%emt 0:00:01]} 11. Kg2 {[%emt 0:00:19]} (11. Ba2 $14) 11... c6 {[%emt 0:00:03] The position is equal.} 12. Bg5 {[%emt 0:00:08]} Nbd7 {[%emt 0:00:07][%cal Od6d5]} 13. Bb3 {[%emt 0:00:10]} Nc5 {[%emt 0:00:02]} 14. Ba2 {[%emt 0:00:06]} Ne6 {[%emt 0:00:01]} 15. Be3 {[%emt 0:00:06]} d5 {[%emt 0:00:19]} (15... Re8 $11) 16. exd5 {[%emt 0:00:09]} (16. Nxe5 $14 {is superior.} d4 17. f4) 16... cxd5 $11 {[%emt 0:00:01] ...d4 is the strong threat.} 17. d4 {[%emt 0:00:07]} (17. Nxe5 $2 d4 18. f4 dxe3 $17) 17... e4 {[%emt 0:00:06]} 18. Ne5 {[%emt 0:00:01]} Nc7 {[%emt 0:00:13]} (18... h6 $11) 19. Ne2 {[%emt 0:00:07]} (19. h4 $16 {Hoping for h5.} h6 20. Bb3) 19... Nfe8 {[%emt 0:00:24]} (19... b5 $11) 20. Nf4 $16 {[%emt 0:00:06]} Bf6 {[%emt 0:00:16]} 21. Qd2 {[%emt 0:00:09]} Qd6 {[%emt 0:00:07]} 22. Rad1 {[%emt 0:00:15]} Rd8 {[%emt 0:00:10]} 23. Nfxg6 {[%emt 0:00:24]} ({White should play} 23. c4 $18) 23... hxg6 $14 {[%emt 0:00:03]} 24. Bf4 {[%emt 0:00:02][%cal Oe5f7] Strongly threatening Nxf7!} Qe7 {[%emt 0:00:06]} (24... Ne6 $11) 25. Qe2 {[%emt 0:00:05]} (25. Bg3 $14) 25... Ne6 $11 {[%emt 0:00:03]} 26. Bg3 {[%emt 0:00:03]} g5 {[%emt 0:00:22]} (26... Nxd4 $5 27. Rxd4 Bxe5 28. Rxd5 Rxd5 29. Bxd5 Nf6 30. Bxe5 Qxe5 31. Bxb7 Qxb2 32. Bxe4 Re8 $15) 27. Qe3 {[%emt 0:00:02] Against Nf4+} g6 {[%emt 0:00:11]} (27... N8c7 $11 {keeps the balance.}) 28. c4 {[%emt 0:00:01]} (28. f3 $1 $16 {[%cal Rf3e4]}) 28... dxc4 {[%emt 0:00:09]} 29. Bxc4 {[%emt 0:00:01]} Nd6 {[%emt 0:00:04] And now ...Bxe5 would win.} 30. Bb3 {[%emt 0:00:04]} Kg7 {[%emt 0:00:10]} 31. f3 {[%emt 0:00:04]} (31. Bxe6 $11 Qxe6 32. Rfe1) 31... exf3+ $2 {[%emt 0:00:05]} (31... Nf4+ $15 {stays ahead.} 32. Bxf4 gxf4 33. Qxf4 Bg5) 32. Qxf3 $16 {[%emt 0:00:02]} Rde8 {[%emt 0:00:11] [#]} (32... Nf4+ $16 33. Bxf4 gxf4) 33. Qxf6+ {[%emt 0:00:06]} Qxf6 {[%emt 0:00:02]} 34. Rxf6 Kxf6 {[%emt 0:00:02]} 35. Nd7+ {[%emt 0:00:03][%mdl 64] Discovered Attack, Double Attack} Ke7 {[%emt 0:00:01]} 36. Nxf8 {[%emt 0:00:03]} Rxf8 {[%emt 0:00:01]} 37. Rc1 {[%emt 0:00:02]} ({White should try} 37. Re1 $16 {Black must now prevent d5.} Kd7 38. Re5) 37... Kd7 {[%emt 0:00:02]} 38. d5 {[%emt 0:00:02]} Nc7 {[%emt 0:00:02] [#]} (38... Nf4+ $11 39. Kf3 Nxh3) 39. Re1 {[%emt 0:00:07]} (39. Ba4+ $1 $16 b5 40. Bb3) 39... Re8 {[%emt 0:00:01]} (39... f5 $11) 40. Rxe8 $14 {[%emt 0:00:02]} Ncxe8 {[%emt 0:00:01][%mdl 4096] Endgame KBB-KNN} 41. Kf3 {[%emt 0:00:01] Prevents Ne4.} f5 {[%emt 0:00:01]} 42. Bc2 {[%emt 0:00:02] Prevents Ne4.} (42. gxf5 $16 gxf5 43. h4) 42... f4 $2 {[%emt 0:00:02]} (42... Nf6 $11) 43. Bf2 $16 {[%emt 0:00:01]} Nf6 {[%emt 0:00:02]} 44. Bxg6 {[%emt 0:00:04]} Nxd5 {[%emt 0:00:01]} 45. Bd3 {[%emt 0:00:03] Against Nc4} b6 {[%emt 0:00:01]} 46. h4 {[%emt 0:00:03]} gxh4 47. Bxh4 {[%emt 0:00:01]} Ke6 {[%emt 0:00:05]} 48. Bc2 {[%emt 0:00:02]} (48. g5 $16) 48... Ke5 $14 {[%emt 0:00:02]} 49. Be1 {[%emt 0:00:01]} Nb5 {[%emt 0:00:03]} (49... Nf7 $1 $11 {remains equal.}) 50. Bb3 $2 {[%emt 0:00:02][%mdl 8192]} (50. Bf2 $16) 50... Nd4+ $19 {[%emt 0:00:01]} 51. Kf2 {[%emt 0:00:02]} Nxb3 {[%emt 0:00:01] Weighted Error Value: White=0.47/Black=0.48} 0-1